fUSD/lending_fUSD_20240626
["ID","MTS","AMOUNT","RATE_DAILY","PERIOD"]
[330458539,1719432632092,-659.13927512,0.00017778,2]
[330458540,1719432632101,-499.99,0.00017807,2]
[330458541,1719432632111,-50.32800259,0.00017807,2]
[330458542,1719432632134,-271.0218633,0.00017807,2]
[330458543,1719432632143,-546.62,0.00017857,2]
[330458544,1719432632153,-6829.34099291,0.00017984,2]
[330458568,1719432637876,-404.64145571,0.00017984,2]
[330458569,1719432637887,-616.38,0.00017984,2]
[330458570,1719432637898,-259.6010198,0.00017984,2]
[330458571,1719432637910,-341.79222,0.00017984,2]
[330458572,1719432638000,-7912.99431158,0.00017984,2]
[330458573,1719432638009,-177.16,0.00018157,2]
[330458574,1719432638018,-5222.51,0.00018533,2]
[330458575,1719432638028,-1156.8,0.00018533,2]
[330458576,1719432638037,-430.54118397,0.00018558,2]
[330458577,1719432638047,-163.62322815,0.00018559,2]
[330458578,1719432638056,-242.18359595,0.00018559,2]
[330458579,1719432638065,-155.0,0.0001856,2]
[330458580,1719432638075,-15078.63856389,0.00018793,2]
[330458581,1719432638094,-1443.26152,0.00018793,2]
[330458582,1719432638107,-542.01891611,0.00018793,2]
[330458583,1719432638117,-365.086,0.00018799,2]
[330458584,1719432638127,-812.0,0.00018799,2]
[330458585,1719432638137,-448.0,0.00018799,2]
[330458586,1719432638147,-618.0,0.00018799,2]
[330458587,1719432638156,-443.0,0.00018799,2]
[330458588,1719432638165,-958.17091167,0.00018799,2]
[330458676,1719432642325,-110.82908833,0.00018799,2]
[330458677,1719432642335,-306.40542902,0.0001889,2]
[330458678,1719432642345,-306.40542902,0.0001889,2]
[330458679,1719432642355,-306.40542902,0.0001889,2]
[330458680,1719432642365,-387.3524,0.00018899,2]
[330458681,1719432642375,-1702.658338,0.000189,2]
[330458682,1719432642384,-810.6614,0.000189,2]
[330458683,1719432642394,-11360.53248661,0.000189,2]
[330458684,1719432642412,-571.61863789,0.000189,2]
[330458693,1719432642962,-467.21215421,0.000156,5]
[330458765,1719432647030,-1709.55000001,0.000156,5]
[330458796,1719433832190,-211.47465837,0.00013983,2]
[330458798,1719433832199,-111.67832023,0.00015332,2]
[330458800,1719433832211,-653.539096,0.00015332,2]
[330458801,1719433832352,-1074.66679133,0.00015332,2]
[330458839,1719433838303,-10935.625522,0.00015332,2]
[330458840,1719433838486,-582.84423061,0.00015332,2]
[330458841,1719433838623,-259.79166223,0.00015332,2]
[330458842,1719433838635,-5011.6,0.00015332,2]
[330458925,1719433840353,-480.06816399,0.00015332,2]
[330458926,1719433841899,-416.024,0.00015332,2]
[330458927,1719433841911,-1428.53893914,0.00015332,2]
[330458928,1719433842021,-4301.74136291,0.00015332,2]
[330458929,1719433842031,-163.67705412,0.00015428,2]
[330458930,1719433842040,-150.0,0.00015429,2]
[330458931,1719433842050,-1340.53158297,0.0001543,2]
[330458932,1719433842075,-2969.9,0.0001543,2]
[330458960,1719433843471,-5949.56039575,0.00015332,2]
[330458961,1719433843484,-2961.33293424,0.0001543,2]
[330458962,1719433843502,-525.02422709,0.0001543,2]
[330459003,1719433846718,-1054.20873751,0.00015332,2]
[330459004,1719433846732,-42384.17576023,0.0001543,2]
[330459005,1719433846746,-6861.0,0.000155,5]
[330459006,1719433846760,-491.95,0.00015535,2]
[330459007,1719433846776,-200.0,0.00017547,2]
[330459008,1719433846790,-541.77822868,0.00017652,2]
[330459009,1719433846805,-352.90432574,0.00017652,2]
[330459010,1719433846819,-235.24436806,0.00017652,2]
[330459011,1719433846832,-250.0,0.00017653,2]
[330459012,1719433846847,-1286.08864935,0.00017653,2]
[330459013,1719433846861,-1000.0,0.00017654,2]
[330459014,1719433846874,-491.95,0.00017799,2]
[330459015,1719433846887,-173.68,0.00017964,2]
[330459017,1719433846900,-2329.11450384,0.00017973,2]
[330459019,1719433846912,-1252.01183286,0.00018081,2]
[330459022,1719433846925,-288.618591,0.00018082,2]
[330459025,1719433846947,-150.0,0.00018231,2]
[330459028,1719433846962,-150.0,0.00018268,2]
[330459030,1719433846977,-297.21326614,0.00018298,2]
[330459033,1719433846990,-297.21326614,0.00018298,2]
[330459035,1719433847006,-297.21326614,0.00018298,2]
[330459038,1719433847021,-297.21326614,0.00018298,2]
[330459040,1719433847035,-297.21326614,0.00018298,2]
[330459043,1719433847050,-10000.0,0.00018308,2]
[330459046,1719433847066,-150.0,0.00018348,2]
[330459048,1719433847081,-297.21326614,0.00018562,2]
[330459051,1719433847096,-155.13896007,0.00018571,2]
[330459053,1719433847110,-150.0,0.00018572,2]
[330459056,1719433847123,-150.0,0.00018705,2]
[330459058,1719433847138,-297.21326614,0.00018784,2]
[330459061,1719433847152,-297.21326614,0.00018789,2]
[330459063,1719433847166,-297.21326614,0.00018789,2]
[330459066,1719433847180,-297.21326614,0.0001879,2]
[330459068,1719433847194,-297.21326614,0.0001879,2]
[330459071,1719433847206,-297.21326614,0.0001879,2]
[330459073,1719433847220,-297.21326614,0.0001879,2]
[330459076,1719433847233,-297.21326614,0.0001879,2]
[330459078,1719433847245,-297.21326614,0.0001879,2]
[330459081,1719433847259,-297.21326614,0.0001879,2]
[330459083,1719433847273,-297.21326614,0.0001879,2]
[330459086,1719433847286,-297.21326614,0.0001879,2]
[330459088,1719433847300,-297.21326614,0.0001879,2]
[330459090,1719433847313,-297.21326614,0.0001879,2]
[330459093,1719433847325,-1322.51350463,0.00018794,2]
[330459095,1719433847338,-3391.35870222,0.00018799,2]
[330459098,1719433847352,-19608.51382202,0.00018799,2]
[330459100,1719433847365,-13232.6779514,0.000188,2]
[330459102,1719433847377,-292.6789,0.000188,2]
[330459105,1719433847389,-500.0,0.00018847,2]
[330459107,1719433847402,-200.0,0.00018847,2]
[330459110,1719433847414,-500.0,0.00018848,2]
[330459112,1719433847428,-500.0,0.00018848,2]
[330459114,1719433847440,-200.0,0.00018848,2]
[330459117,1719433847452,-150.0,0.00018863,2]
[330459119,1719433847464,-532.56139112,0.00018882,2]
[330459121,1719433847477,-525.88970109,0.00018883,2]
[330459124,1719433847490,-155.0,0.00018898,2]
[330459126,1719433847502,-1000.0,0.00018899,2]
[330459128,1719433847514,-368.59840723,0.00018899,2]
[330459130,1719433847526,-887.68380317,0.00018899,2]
[330459131,1719433847538,-197.17300659,0.000189,2]
[330459132,1719433847550,-954.921999,0.000189,2]
[330459133,1719433847562,-986.9652,0.000189,2]
[330459134,1719433847575,-158.92820403,0.000189,2]
[330459135,1719433847586,-22161.028,0.000189,2]
[330459136,1719433847599,-21472.1748,0.000189,2]
[330459137,1719433847611,-360.6364,0.000189,2]
[330459138,1719433847624,-9016.1602,0.000189,2]
[330459139,1719433847636,-500.0,0.000189,2]
[330459140,1719433847648,-163.85134778,0.000189,2]
[330459142,1719433847661,-931.5867,0.000189,2]
[330459144,1719433847675,-213.95831759,0.000189,2]
[330459146,1719433847689,-2000.0,0.000189,2]
[330459149,1719433847702,-1622.93559,0.000189,2]
[330459151,1719433847716,-7500.0,0.000189,2]
[330459153,1719433847729,-317.70355497,0.000189,2]
[330459156,1719433847741,-335.26586388,0.000189,2]
[330459158,1719433847754,-1126.73400742,0.00018904,2]
[330459160,1719433847766,-288.618591,0.00018904,2]
[330459163,1719433847780,-500.0,0.00018905,2]
[330459165,1719433847792,-500.0,0.00018905,2]
[330459167,1719433847805,-500.0,0.00018905,2]
[330459170,1719433847818,-500.0,0.00018905,2]
[330459172,1719433847830,-500.0,0.00018905,2]
[330459174,1719433847842,-363.8017,0.00018905,2]
[330459176,1719433847853,-1000.0,0.00018905,2]
[330459179,1719433847865,-1000.0,0.00018905,2]
[330459181,1719433847877,-1000.0,0.00018905,2]
[330459183,1719433847889,-1000.0,0.00018905,2]
[330459186,1719433847900,-1000.0,0.00018905,2]
[330459188,1719433847913,-1000.0,0.00018905,2]
[330459190,1719433847924,-1000.0,0.00018905,2]
[330459192,1719433847940,-1000.0,0.00018905,2]
[330459195,1719433847951,-1000.0,0.00018905,2]
[330459197,1719433847964,-1000.0,0.00018905,2]
[330459199,1719433847976,-520.2421,0.00018905,2]
[330459201,1719433847988,-200.00092216,0.00018909,2]
[330459204,1719433848000,-673.25462007,0.00018949,2]
[330459206,1719433848014,-174.35486347,0.00018957,2]
[330459208,1719433848027,-150.0,0.00018958,2]
[330459211,1719433848039,-155.0,0.00018968,2]
[330459213,1719433848051,-787.94090939,0.00018988,2]
[330459216,1719433848071,-210.20765487,0.0001899,2]
[330459219,1719433848089,-5912.91947958,0.00018999,2]
[330459222,1719433848106,-1118.0,0.00019,2]
[330459224,1719433848120,-50964.47907406,0.00019,2]
[330459428,1719433850072,-106786.65250979,0.00019,2]
[330459430,1719433850089,-749246.96294855,0.00019,2]
[330459433,1719433850099,-1000.0,0.00019,3]
[330459435,1719433850108,-1000.0,0.00019,3]
[330459437,1719433850118,-1000.0,0.00019,3]
[330459439,1719433850127,-1000.0,0.00019,3]
[330459441,1719433850137,-1000.0,0.00019,3]
[330459443,1719433850147,-1000.0,0.00019,3]
[330459445,1719433850158,-490.0,0.00019,2]
[330459447,1719433850167,-200.0,0.00019,2]
[330459449,1719433850177,-2000.0,0.00019,2]
[330459451,1719433850186,-200.0,0.00019,2]
[330459453,1719433850195,-300.0,0.00019,2]
[330459454,1719433850205,-13101.5061775,0.00019056,2]
[330459455,1719433850215,-296.22614278,0.00019068,2]
[330459456,1719433850225,-2219.1797747,0.00019069,2]
[330459457,1719433850234,-155.0,0.00019081,2]
[330459458,1719433850243,-462.5260095,0.00019082,2]
[330459459,1719433850252,-2552.63848332,0.00019094,2]
[330459460,1719433850263,-157.69153466,0.00019095,2]
[330459461,1719433850272,-528.0988798,0.00019095,2]
[330459462,1719433850282,-241.83087059,0.00019095,2]
[330459463,1719433850291,-226.97511983,0.00019095,2]
[330459464,1719433850301,-241.07944647,0.00019095,2]
[330459465,1719433850311,-226.97511983,0.00019095,2]
[330459466,1719433850321,-292.27590029,0.00019095,2]
[330459467,1719433850331,-661.39330911,0.00019096,2]
[330459468,1719433850340,-1081.1156459,0.00019109,2]
[330459469,1719433850350,-10189.1623043,0.0001911,2]
[330459470,1719433850360,-38147.9054135,0.0001911,2]
[330459471,1719433850370,-529.65728417,0.00019122,2]
[330459472,1719433850379,-190.78,0.00019123,2]
[330459473,1719433850389,-853.18,0.00019123,2]
[330459474,1719433850399,-836.92,0.00019123,2]
[330459475,1719433850408,-853.18,0.00019123,2]
[330459476,1719433850418,-853.18,0.00019123,2]
[330459477,1719433850428,-695.76,0.00019123,2]
[330459478,1719433850437,-1322.51350458,0.00019139,2]
[330459479,1719433850447,-647.07170086,0.00019143,2]
[330459480,1719433850456,-647.07170086,0.00019143,2]
[330459481,1719433850466,-13232.67795138,0.00019144,2]
[330459483,1719433850476,-151.0,0.00019178,2]
[330459485,1719433850486,-151.0,0.00019178,2]
[330459486,1719433850496,-151.0,0.00019178,2]
[330459487,1719433850506,-151.0,0.00019178,2]
[330459488,1719433850515,-151.0,0.00019178,2]
[330459489,1719433850524,-151.0,0.00019178,2]
[330459490,1719433850534,-151.0,0.00019178,2]
[330459491,1719433850543,-151.0,0.00019178,2]
[330459492,1719433850553,-151.0,0.00019178,2]
[330459493,1719433850563,-151.0,0.00019178,2]
[330459494,1719433850573,-151.0,0.00019178,2]
[330459495,1719433850584,-151.0,0.00019178,2]
[330459496,1719433850595,-188.272434,0.00019178,2]
[330459497,1719433850605,-151.628031,0.00019178,2]
[330459498,1719433850615,-151.0,0.00019178,2]
[330459499,1719433850625,-151.0,0.00019178,2]
[330459500,1719433850635,-451.337661,0.00019178,2]
[330459501,1719433850645,-451.337661,0.00019178,2]
[330459502,1719433850655,-151.0,0.00019178,2]
[330459503,1719433850665,-151.0,0.00019178,2]
[330459504,1719433850675,-1878.549815,0.00019178,2]
[330459505,1719433850684,-1878.549815,0.00019178,2]
[330459506,1719433850694,-258.999764,0.00019178,2]
[330459507,1719433850703,-258.999764,0.00019178,2]
[330459508,1719433850713,-151.0,0.00019178,2]
[330459509,1719433850722,-151.0,0.00019178,2]
[330459510,1719433850732,-1173.34246,0.00019178,2]
[330459511,1719433850742,-401.949054,0.00019178,2]
[330459512,1719433850751,-401.949054,0.00019178,2]
[330459513,1719433850761,-1173.34246,0.00019178,2]
[330459514,1719433850770,-151.0,0.00019178,2]
[330459515,1719433850780,-151.0,0.00019178,2]
[330459516,1719433850790,-151.0,0.00019178,2]
[330459517,1719433850799,-151.0,0.00019178,2]
[330459518,1719433850809,-151.0,0.00019178,2]
[330459519,1719433850821,-255.271548,0.00019178,2]
[330459520,1719433850830,-151.0,0.00019178,2]
[330459521,1719433850840,-151.0,0.00019178,2]
[330459522,1719433850851,-151.0,0.00019178,2]
[330459523,1719433850862,-533.795358,0.00019178,2]
[330459524,1719433850871,-151.0,0.00019178,2]
[330459525,1719433850882,-533.795358,0.00019178,2]
[330459526,1719433850891,-151.0,0.00019178,2]
[330459527,1719433850902,-151.0,0.00019178,2]
[330459528,1719433850912,-151.0,0.00019178,2]
[330459529,1719433850922,-151.0,0.00019178,2]
[330459530,1719433850934,-22592.55,0.00019178,2]
[330459531,1719433850943,-250.0,0.00019178,2]
[330459532,1719433850952,-151.0,0.00019189,2]
[330459533,1719433850962,-324.540981,0.00019189,2]
[330459534,1719433850971,-324.540981,0.00019189,2]
[330459535,1719433850981,-151.0,0.00019189,2]
[330459536,1719433850991,-151.0,0.00019189,2]
[330459537,1719433851000,-151.0,0.00019189,2]
[330459538,1719433851011,-151.621177,0.00019189,2]
[330459539,1719433851022,-151.0,0.00019189,2]
[330459540,1719433851031,-151.0,0.00019189,2]
[330459541,1719433851042,-151.0,0.00019189,2]
[330459542,1719433851051,-151.0,0.00019189,2]
[330459543,1719433851061,-151.0,0.00019189,2]
[330459544,1719433851072,-151.0,0.00019189,2]
[330459545,1719433851082,-151.0,0.00019189,2]
[330459546,1719433851091,-151.0,0.00019189,2]
[330459547,1719433851102,-151.581443,0.00019189,2]
[330459548,1719433851112,-151.0,0.00019189,2]
[330459549,1719433851122,-151.0,0.00019189,2]
[330459550,1719433851132,-151.0,0.00019189,2]
[330459551,1719433851142,-151.0,0.00019189,2]
[330459552,1719433851152,-151.0,0.00019189,2]
[330459553,1719433851162,-770.296472,0.00019189,2]
[330459554,1719433851171,-151.0,0.00019189,2]
[330459555,1719433851182,-151.0,0.00019189,2]
[330459556,1719433851191,-770.296472,0.00019189,2]
[330459557,1719433851201,-151.0,0.00019189,2]
[330459558,1719433851211,-200.0,0.0001919,2]
[330459559,1719433851220,-2000.0,0.0001919,2]
[330459560,1719433851229,-200.0,0.0001919,2]
[330459561,1719433851239,-151.0,0.0001919,2]
[330459562,1719433851249,-277.880378,0.0001919,2]
[330459563,1719433851259,-277.880378,0.0001919,2]
[330459564,1719433851269,-151.0,0.0001919,2]
[330459565,1719433851278,-384.447026,0.0001919,2]
[330459566,1719433851396,-151.0,0.0001919,2]
[330459567,1719433851406,-151.0,0.0001919,2]
[330459568,1719433851415,-384.447026,0.0001919,2]
[330459569,1719433851424,-206.874608,0.0001919,2]
[330459570,1719433851434,-151.0,0.0001919,2]
[330459571,1719433851444,-151.0,0.0001919,2]
[330459572,1719433851454,-206.874608,0.0001919,2]
[330459573,1719433851464,-151.0,0.0001919,2]
[330459574,1719433851474,-151.0,0.0001919,2]
[330459575,1719433851484,-151.0,0.0001919,2]
[330459576,1719433851495,-151.0,0.0001919,2]
[330459577,1719433851505,-151.0,0.0001919,2]
[330459578,1719433851515,-359.567352,0.0001919,2]
[330459579,1719433851524,-151.0,0.0001919,2]
[330459580,1719433851533,-155.486972,0.0001919,2]
[330459581,1719433851543,-359.567352,0.0001919,2]
[330459582,1719433851552,-155.486972,0.0001919,2]
[330459583,1719433851561,-151.0,0.0001919,2]
[330459584,1719433851571,-165.737821,0.0001919,2]
[330459585,1719433851580,-165.737821,0.0001919,2]
[330459586,1719433851590,-225.857259,0.0001919,2]
[330459587,1719433851601,-225.857259,0.0001919,2]
[330459588,1719433851611,-954.92199898,0.00019191,2]
[330459589,1719433851620,-355.0,0.000192,2]
[330459590,1719433851631,-225.0,0.000192,2]
[330459591,1719433851640,-1069.0,0.00019289,2]
[330459592,1719433851650,-448.0,0.00019289,2]
[330459593,1719433851659,-618.0,0.00019289,2]
[330459594,1719433851668,-395.583,0.00019289,2]
[330459595,1719433851678,-812.0,0.00019289,2]
[330459596,1719433851688,-335.26586384,0.00019329,2]
[330459597,1719433851697,-173.22,0.0001936,2]
[330459598,1719433851706,-2000.0,0.00019382,2]
[330459599,1719433851715,-200.0,0.00019382,2]
[330459600,1719433851725,-150.0,0.00019438,2]
[330459601,1719433851734,-150.0,0.00019474,2]
[330459602,1719433851745,-954.92199898,0.00019482,2]
[330459603,1719433851754,-1322.51350458,0.00019484,2]
[330459604,1719433851763,-13232.67795138,0.00019489,2]
[330459605,1719433851773,-811.68,0.00019534,2]
[330459606,1719433851782,-152.2,0.00019534,2]
[330459607,1719433851792,-150.0,0.00019534,2]
[330459608,1719433851801,-150.98,0.00019534,2]
[330459609,1719433851810,-150.0,0.00019534,2]
[330459610,1719433851819,-151.05,0.00019534,2]
[330459611,1719433851829,-150.51,0.00019534,2]
[330459612,1719433851838,-164.67,0.00019534,2]
[330459613,1719433851847,-354.44,0.00019534,2]
[330459614,1719433851856,-150.0,0.00019534,2]
[330459615,1719433851865,-150.0,0.00019534,2]
[330459616,1719433851874,-423.85,0.00019534,2]
[330459617,1719433851883,-150.0,0.00019534,2]
[330459618,1719433851892,-150.0,0.00019534,2]
[330459619,1719433851901,-164.67,0.00019534,2]
[330459620,1719433851911,-150.0,0.00019534,2]
[330459621,1719433851919,-354.44,0.00019534,2]
[330459622,1719433851932,-150.0,0.00019534,2]
[330459623,1719433851942,-150.0,0.00019534,2]
[330459624,1719433851951,-150.0,0.00019534,2]
[330459625,1719433851960,-423.85,0.00019534,2]
[330459626,1719433851970,-150.0,0.00019534,2]
[330459627,1719433851980,-150.0,0.00019534,2]
[330459628,1719433851989,-354.44,0.00019534,2]
[330459629,1719433851999,-150.0,0.00019534,2]
[330459630,1719433852011,-150.0,0.00019534,2]
[330459631,1719433852020,-164.67,0.00019534,2]
[330459632,1719433852029,-150.0,0.00019534,2]
[330459633,1719433852038,-150.0,0.00019534,2]
[330459634,1719433852048,-423.85,0.00019534,2]
[330459635,1719433852057,-150.0,0.00019534,2]
[330459636,1719433852066,-150.0,0.00019534,2]
[330459637,1719433852076,-150.0,0.00019534,2]
[330459638,1719433852085,-423.85,0.00019534,2]
[330459639,1719433852094,-150.0,0.00019534,2]
[330459640,1719433852103,-150.0,0.00019534,2]
[330459641,1719433852113,-164.67,0.00019534,2]
[330459642,1719433852122,-354.44,0.00019534,2]
[330459643,1719433852131,-150.0,0.00019534,2]
[330459644,1719433852141,-300.0,0.00019534,2]
[330459645,1719433852151,-354.44,0.00019534,2]
[330459646,1719433852160,-150.0,0.00019534,2]
[330459647,1719433852169,-150.0,0.00019534,2]
[330459648,1719433852178,-150.0,0.00019534,2]
[330459649,1719433852188,-150.0,0.00019534,2]
[330459650,1719433852197,-164.67,0.00019534,2]
[330459651,1719433852206,-354.44,0.00019534,2]
[330459652,1719433852215,-423.85,0.00019534,2]
[330459653,1719433852225,-316.16,0.00019534,2]
[330459654,1719433852234,-150.0,0.00019534,2]
[330459655,1719433852243,-423.85,0.00019534,2]
[330459656,1719433852253,-164.67,0.00019534,2]
[330459657,1719433852263,-150.0,0.00019534,2]
[330459658,1719433852272,-354.44,0.00019534,2]
[330459659,1719433852281,-423.85,0.00019534,2]
[330459660,1719433852290,-150.0,0.00019534,2]
[330459661,1719433852300,-164.67,0.00019534,2]
[330459662,1719433852309,-150.0,0.00019534,2]
[330459663,1719433852318,-344.55,0.00019534,2]
[330459664,1719433852327,-150.0,0.00019534,2]
[330459665,1719433852337,-257.46,0.00019534,2]
[330459666,1719433852346,-150.0,0.00019534,2]
[330459667,1719433852355,-163.15,0.00019534,2]
[330459668,1719433852364,-417.75,0.00019534,2]
[330459669,1719433852373,-150.0,0.00019563,2]
[330459670,1719433852382,-2000.0,0.00019576,2]
[330459671,1719433852391,-200.0,0.00019576,2]
[330459672,1719433852400,-163.85134777,0.0001965,2]
[330459673,1719433852410,-150.0,0.0001965,2]
[330459674,1719433852419,-288.618591,0.00019726,2]
[330459675,1719433852428,-335.26586384,0.00019757,2]
[330459676,1719433852437,-150.0,0.00019766,2]
[330459677,1719433852446,-2000.0,0.00019771,2]
[330459678,1719433852455,-200.0,0.00019771,2]
[330459679,1719433852464,-954.92199898,0.00019773,2]
[330459680,1719433852474,-150.0,0.00019775,2]
[330459681,1719433852484,-150.0,0.00019785,2]
[330459682,1719433852492,-150.0,0.00019814,2]
[330459683,1719433852502,-150.0,0.00019816,2]
[330459684,1719433852511,-150.0,0.00019828,2]
[330459685,1719433852520,-1322.51350458,0.00019829,2]
[330459686,1719433852530,-150.0,0.00019833,2]
[330459687,1719433852539,-13232.67795138,0.00019833,2]
[330459688,1719433852548,-150.0,0.00019843,2]
[330459689,1719433852558,-1000.0,0.00019861,2]
[330459690,1719433852567,-151.0,0.000199,2]
[330459691,1719433852576,-151.0,0.000199,2]
[330459692,1719433852586,-150.0,0.00019958,4]
[330459693,1719433852596,-326.91214886,0.0002,2]
[330459694,1719433852606,-1274.00198507,0.0002,2]
[330459695,1719433852615,-5000.0,0.0002,2]
[330459696,1719433852624,-155.0,0.0002,2]
[330459697,1719433852634,-1000.0,0.0002,3]
[330459698,1719433852643,-188.02177924,0.0002,2]
[330459699,1719433852652,-151.02,0.0002,2]
[330459700,1719433852661,-257.0,0.0002,2]
[330459701,1719433852671,-187.40528707,0.0002,2]
[330459702,1719433852682,-151.0,0.0002,2]
[330459703,1719433852691,-277.880378,0.0002,2]
[330459704,1719433852702,-277.880378,0.0002,2]
[330459705,1719433852712,-384.447026,0.0002,2]
[330459706,1719433852722,-151.0,0.0002,2]
[330459707,1719433852731,-151.0,0.0002,2]
[330459708,1719433852740,-384.447026,0.0002,2]
[330459709,1719433852750,-206.874608,0.0002,2]
[330459710,1719433852759,-151.0,0.0002,2]
[330459711,1719433852768,-151.0,0.0002,2]
[330459712,1719433852777,-206.874608,0.0002,2]
[330459713,1719433852786,-151.0,0.0002,2]
[330459714,1719433852796,-151.0,0.0002,2]
[330459715,1719433852806,-151.0,0.0002,2]
[330459716,1719433852815,-151.0,0.0002,2]
[330459717,1719433852824,-151.0,0.0002,2]
[330459718,1719433852833,-359.567352,0.0002,2]
[330459719,1719433852842,-151.0,0.0002,2]
[330459720,1719433852851,-155.486972,0.0002,2]
[330459721,1719433852861,-359.567352,0.0002,2]
[330459722,1719433852872,-155.486972,0.0002,2]
[330459723,1719433852881,-154.872482,0.0002,2]
[330459724,1719433852891,-151.0,0.0002,2]
[330459725,1719433852900,-165.737821,0.0002,2]
[330459726,1719433852909,-165.737821,0.0002,2]
[330459727,1719433852919,-324.540981,0.0002,2]
[330459728,1719433852929,-324.540981,0.0002,2]
[330459729,1719433852943,-225.857259,0.0002,2]
[330459730,1719433852952,-151.0,0.0002,2]
[330459731,1719433852961,-225.857259,0.0002,2]
[330459732,1719433852972,-151.0,0.0002,2]
[330459733,1719433852982,-151.0,0.0002,2]
[330459734,1719433852991,-1878.549815,0.0002,2]
[330459735,1719433853001,-1878.549815,0.0002,2]
[330459736,1719433853011,-258.999764,0.0002,2]
[330459737,1719433853020,-258.999764,0.0002,2]
[330459738,1719433853029,-151.0,0.0002,2]
[330459739,1719433853037,-156.365427,0.0002,2]
[330459740,1719433853046,-1173.34246,0.0002,2]
[330459741,1719433853056,-401.949054,0.0002,2]
[330459742,1719433853066,-401.949054,0.0002,2]
[330459743,1719433853077,-1173.34246,0.0002,2]
[330459744,1719433853086,-151.0,0.0002,2]
[330459745,1719433853095,-151.0,0.0002,2]
[330459746,1719433853105,-151.0,0.0002,2]
[330459747,1719433853116,-151.0,0.0002,2]
[330459748,1719433853127,-151.0,0.0002,2]
[330459749,1719433853138,-151.0,0.0002,2]
[330459750,1719433853148,-533.795358,0.0002,2]
[330459751,1719433853157,-151.0,0.0002,2]
[330459752,1719433853167,-533.795358,0.0002,2]
[330459753,1719433853176,-151.0,0.0002,2]
[330459754,1719433853186,-151.0,0.0002,2]
[330459755,1719433853196,-151.0,0.0002,2]
[330459756,1719433853206,-7553.25616003,0.0002,2]
[330459757,1719433853216,-150.0,0.00020017,2]
[330459758,1719433853226,-150.0,0.00020062,2]
[330459759,1719433853236,-491.95,0.00020063,2]
[330459760,1719433853245,-954.92199898,0.00020064,2]
[330459761,1719433853255,-150.0,0.00020142,4]
[330459762,1719433853265,-150.0,0.0002015,2]
[330459763,1719433853275,-1322.51350458,0.00020174,2]
[330459764,1719433853285,-13232.67795138,0.00020178,2]
[330459765,1719433853294,-335.26586384,0.00020186,2]
[330459766,1719433853304,-2016.76860931,0.000202,2]
[330459767,1719433853314,-151.0,0.000202,2]
[330459768,1719433853325,-157.070783,0.000202,2]
[330459769,1719433853335,-151.0,0.000202,2]
[330459770,1719433853345,-151.0,0.000202,2]
[330459771,1719433853355,-151.0,0.00020204,2]
[330459772,1719433853364,-151.0,0.00020204,2]
[330459773,1719433853374,-151.0,0.00020204,2]
[330459774,1719433853383,-161.552564,0.00020233,2]
[330459775,1719433853394,-151.0,0.00020233,2]
[330459776,1719433853403,-151.0,0.00020233,2]
[330459777,1719433853412,-151.0,0.00020233,2]
[330459778,1719433853422,-151.0,0.00020233,2]
[330459779,1719433853431,-151.0,0.00020233,2]